Cogmind - Beta 15 @@@ ROGUE MODE // 2025.10.03 @ 22:26:34 Player: Holographiti Result: Destroyed by G-47 Trooper with Particle Gun Performance ------------- Evolutions (2) 1000 Regions Visited (5) 1000 Robots Destroyed (51) 255 Value Destroyed (1331) 1331 Prototype IDs (3) 60 Alien Tech Used (0) 0 Bonus (108) 108 TOTAL SCORE: 3754 Bonus ------- High Alert Combat Kills 52 Follower Combat Kills 56 Cogmind --------- Core Integrity 0/550 Matter 274/300 Energy 99/100 System Corruption 1% Temperature Cool (18) Movement Core (200) Ox3 Location -8/Storage Parts ------- > --- POWER (2) -------- (None) > --- PROPULSION (3) --- (None) > --- UTILITY (3) ------ Medium Storage Unit > --- WEAPON (3) ------- (None) > --- INVENTORY (10) --- Improved Heat Sink Experimental Sensor Array Terrain Scanner Salvage Targeting Computer Light Armor Plating Hacking Suite System Restoration Module Peak State ------------ > --- POWER ------------ Light Ion Engine Improved Ion Engine > --- PROPULSION ------- Aluminum Leg Improved Aluminum Leg Carbon-fiber Leg > --- UTILITY ---------- Medium Storage Unit Experimental Sensor Array Launcher Guidance Computer > --- WEAPON ----------- Particle Gun Assault Rifle Rocket Launcher > --- INVENTORY -------- Light Nuclear Core Terrain Scanner Salvage Targeting Computer Hacking Suite System Restoration Module Heavy Particle Cannon Shock Bomb Launcher Improved Datajack [Rating: 30] Favorites ----------- Power Improved Ion Engine Engine Improved Ion Engine Power Core Light Nuclear Core Propulsion Aluminum Leg Leg Aluminum Leg Utility Small Storage Unit Device Sensor Array Storage Small Storage Unit Processor Launcher Guidance Computer Protection Medium Armor Plating Weapon Assault Rifle Energy Gun Particle Gun Energy Cannon Heavy Particle Cannon Ballistic Gun Assault Rifle Ballistic Cannon Light Cannon Launcher Shock Bomb Launcher Special Melee Weapon Improved Datajack Build | -11 -10 -9 -9 -8 -8 ------- Run | Yrd Mat Mat Min Mat Sto Slots Evolved 4 | . . 2 . 2 . Power 1 | . . . . 1 . Propulsion 1 | . . 1 . . . Utility 1 | . . 1 . . . Weapon 1 | . . . . 1 . Parts Attached 36 | 6 4 10 3 9 4 Power 7 | 1 1 2 . 3 . Engine 6 | 1 1 2 . 2 . Core 1 | . . . . 1 . Reactor . | . . . . . . Propulsion 9 | 2 1 3 2 1 . Treads . | . . . . . . Leg 9 | 2 1 3 2 1 . Wheel . | . . . . . . Hover . | . . . . . . Flight . | . . . . . . Utility 10 | 1 1 2 1 2 3 Device 5 | . 1 . 1 . 3 Storage 2 | 1 . . . 1 . Processor 1 | . . . . 1 . Hackware . | . . . . . . Protection 2 | . . 2 . . . Artifact . | . . . . . . Weapon 10 | 2 1 3 . 3 1 Energy Gun 1 | . . . . 1 . Energy Cannon 1 | . . . . 1 . Ballistic Gun 2 | 2 . . . . . Ballistic Cannon 2 | . 1 1 . . . Launcher 3 | . . 2 . 1 . Special Weapon . | . . . . . . Impact Weapon . | . . . . . . Slashing Weapon . | . . . . . . Piercing Weapon . | . . . . . . Special Melee Weapon 1 | . . . . . 1 Unidentified Prototypes 1 | . . . 1 . . Parts Lost 22 | . . 4 . 11 7 Power 4 | . . . . 3 1 Propulsion 4 | . . . . 3 1 Utility 5 | . . 1 . 1 3 Weapon 9 | . . 3 . 4 2 Highest Loss Streak 8 | . . 2 . 8 7 To Critical Strikes 2 | . . . . . 2 Average Backups 7 | 1 6 7 8 6 8 Power 1 | . . 1 2 . . Propulsion . | 1 . 1 . . . Utility 3 | . 2 2 3 4 7 Weapon 1 | . 2 1 2 1 . Tool/Special . | . . . . . . Unused Backups 14 | . 5 4 2 . 3 Power . | . . . . . . Propulsion 3 | . 3 . . . . Utility 8 | . 1 3 1 . 3 Weapon 3 | . 1 1 1 . . Tool/Special . | . . . . . . Average Slot Usage (%) 92 | . 99 99 99 73 48 Engine 11 | . 14 11 11 9 7 Leg 27 | . 28 33 33 15 8 Device 11 | . 13 11 10 9 9 Storage 11 | . 14 11 11 9 9 Processor 1 | . . . . 7 6 Protection 6 | . . 10 11 1 . Energy Cannon 1 | . . . . 3 6 Ballistic Gun 9 | . 15 8 11 7 . Ballistic Cannon 5 | . 13 7 . . . Launcher 4 | . . 6 11 5 . Peak Build Rating 30 | 6 7 15 26 30 23 Average Rating 14 | 4 6 12 22 24 17 On Entrance 12 | . 6 7 15 26 21 Naked Turns . | . . . . . . Heaviest Build 37 | 12 16 28 28 37 35 Greatest Support 38 | 20 20 33 38 38 10 Greatest Overweight (x) 8 | 1 . . . 8 3 Average Overweight (x) . | . . . . 1 2 Largest Inventory Capacity 10 | 8 8 8 8 10 10 Average Capacity 8 | 7 8 8 8 9 10 Most Carried 10 | 3 8 8 8 8 10 Average Carried 7 | 1 6 7 7 6 8 Final Capacity 10 | 8 8 8 8 10 10 Final Carried 8 | 3 8 8 8 7 7 Class Distribution -------------------- 80% | Mutant 14% | Scavenger-Mutant 4% | Scavenger-Gunner Dominant Class ---------------- Mutant | -10/Materials Mutant | -9/Materials Mutant | -9/Mines Mutant | -8/Materials Mutant | -8/Storage Resources | -11 -10 -9 -9 -8 -8 ----------- Run | Yrd Mat Mat Min Mat Sto Matter Collected 1294 | 234 176 357 209 318 . Remotely . | . . . . . . Salvage Created 1154 | . 199 604 . 351 . Parts 86 | . 14 51 . 21 . Haulers Intercepted 1 | . 1 . . . . Recyclers Shooed 5 | . . 2 . 2 1 Parts Field Recycled . | . . . . . . Retrieved Matter . | . . . . . . Parts Self-Destructed . | . . . . . . Prevented . | . . . . . . Kills | -11 -10 -9 -9 -8 -8 ------- Run | Yrd Mat Mat Min Mat Sto Combat Hostiles Destroyed 36 | . 4 21 . 11 . Guns 13 | . . 9 . 4 . Cannons 9 | . 4 5 . . . AOE 14 | . . 7 . 7 . Classes Destroyed 11 | . 2 7 . 2 . Worker 2 | . . 2 . . . Builder 2 | . . . . 2 . Tunneler 1 | . . 1 . . . Hauler 1 | . 1 . . . . Recycler 1 | . . 1 . . . Operator 1 | . . 1 . . . Watcher 6 | . . 4 . 2 . Swarmer 13 | . . 7 . 6 . Grunt 16 | . 4 9 . 3 . Sentry 7 | . . 5 . 2 . Heavy 1 | . . . . 1 . Best Kill Streak 9 | . 2 9 . 6 . Combat Bots Only 5 | . 2 5 . 5 . Max Kills in Single Turn 3 | . 1 2 . 3 . Gunslinging . | . . . . . . Exploded 2 | . . 1 . 2 . Melee . | . . . . . . Uniques/NPCs Destroyed . | . . . . . . Combat | -11 -10 -9 -9 -8 -8 -------- Run | Yrd Mat Mat Min Mat Sto Hostile Shots Fired 310 | . 28 80 . 78 124 Missed 85 | . 6 21 . 25 33 Hits 225 | . 22 59 . 53 91 Projectile 225 | . 22 59 . 53 91 Critical Strikes 9 | . . 1 . 5 3 Damage Taken 3148 | . 237 827 . 989 1095 Core 745 | . 34 146 . 152 413 Absorbed by Shields . | . . . . . . Core Remaining (%) 83 | 100 86 . 63 . . Volleys Fired 139 | . 19 80 . 34 6 Largest 3 | . 2 2 . 3 1 Hottest 160 | . 50 63 . 160 75 Shots Fired 222 | . 38 110 . 68 6 Gun 114 | . 19 53 . 42 . Cannon 77 | . 19 40 . 12 6 Launcher 31 | . . 17 . 14 . Special . | . . . . . . Kinetic 157 | . 38 93 . 26 . Thermal 34 | . . . . 28 6 Explosive 27 | . . 17 . 10 . Electromagnetic 4 | . . . . 4 . Robot Hit Streak 8 | . 7 8 . 7 3 Robot Miss Streak 6 | . 3 3 . 6 1 Penetration Max . | . . . . . . Secondary Targets . | . . . . . . Shots Hit Robots 136 | . 21 67 . 40 8 Core Hits 88 | . 8 51 1 28 . Critical Kills . | . . . . . . Critical Parts Destroyed 1 | . . . . 1 . Critical Strikes 2 | . . 1 . 1 . Destroy 1 | . . . . 1 . Blast 1 | . . 1 . . . Melee Attacks 5 | . . . . . 5 Impact . | . . . . . . Slashing . | . . . . . . Piercing . | . . . . . . Sneak Attacks . | . . . . . . Combat Hostiles . | . . . . . . Follow-up Attacks . | . . . . . . Damage Inflicted 3905 | . 335 2030 15 1424 101 Guns 854 | . 94 428 . 332 . Cannons 952 | . 236 441 . 175 100 Explosions 2077 | . . 1160 . 917 . Melee . | . . . . . . Ramming 22 | . 5 1 15 . 1 Kinetic 1377 | . 330 869 . 178 . Thermal 598 | . . 169 . 329 100 Explosive 1680 | . . 896 . 784 . Electromagnetic 228 | . . 95 . 133 . Impact . | . . . . . . Slashing . | . . . . . . Piercing . | . . . . . . Highest Corruption 1 | . . . . 1 1 Average Corruption 1 | . . . . 1 1 Corruption Purged . | . . . . . . Corruption Blocked . | . . . . . . Effects 1 | . . . . . 1 Matter Fused 1 | . . . . . 1 Overload Shots . | . . . . . . Overflow Damage 90 | . . 38 . 52 . Projectiles 4 | . . 4 . . . Explosions 86 | . . 34 . 52 . Melee . | . . . . . . Knockbacks 10 | . 4 6 . . . Impact . | . . . . . . Kinetic 10 | . 4 6 . . . Secondary . | . . . . . . Self-Inflicted Damage 213 | . . 189 . 24 . Shots 10 | . . 8 . 2 . Rammed . | . . . . . . Targets Rammed 10 | . 3 1 5 . 1 Kicked 10 | . 3 1 5 . 1 Crushed . | . . . . . . Highest Temperature 510 | . 8 56 . 510 96 Average Temperature 85 | . 3 19 . 149 41 Received Heat Transfer 897 | . 99 195 . 387 216 Effects 6 | . . . . 6 . Shutdowns 2 | . . . . 2 . Interference 1 | . . . . 1 . Short Circuit 1 | . . . . 1 . Damage (major) 2 | . . . . 2 . Siege Activations . | . . . . . . Martial Activations . | . . . . . . Shielding Activations . | . . . . . . Robots Disrupted . | . . . . . . Combat Hostiles . | . . . . . . Robots Corrupted . | . . . . . . Combat Hostiles . | . . . . . . Parts Fried . | . . . . . . Impact Corruptions . | . . . . . . Robots Melted . | . . . . . . Combat Hostiles . | . . . . . . Parts Melted . | . . . . . . Heat Transferred 877 | . . 100 . 629 148 Parts Sabotaged . | . . . . . . Parts Stolen . | . . . . . . Parts Stripped . | . . . . . . Power Chain Reactions 2 | . . 1 . 1 . Alert | -11 -10 -9 -9 -8 -8 ------- Run | Yrd Mat Mat Min Mat Sto Maximum Alert Level 2 | . . 2 . 1 . Low Security (%) 70 | 100 100 28 100 75 100 Level 1 6 | . . 7 . 24 . Level 2 22 | . . 64 . . . Level 3 . | . . . . . . Level 4 . | . . . . . . Level 5 . | . . . . . . High Security . | . . . . . . Max Security . | . . . . . . Peak Influence 527 | . 50 527 195 240 66 Initial 195 | . . 7 195 . 66 Average 159 | . 11 335 80 154 25 Influence Increases 1531 | . 167 867 . 493 4 Destroy 0b10 Robot/C 800 | . 80 420 . 300 . Destroy 0b10 Robot/NC 70 | . 5 45 . 20 . Destroy Leader 224 | . 22 128 . 74 . Allied During Kill 11 | . . . . 11 . Successful Hack 4 | . . 2 . . 2 Disable Machine 120 | . . 120 . . . Destroy Structure 182 | . . 122 . 58 2 Lose Combat Pursuer 120 | . 60 30 . 30 . Influence Decreases 1531 | . 150 381 503 336 161 Entered New Map 409 | . . 10 308 . 91 Time Decay 931 | . 150 331 195 186 69 Lost Part 151 | . . 40 . 110 1 Lost Ally 40 | . . . . 40 . Squads Dispatched 8 | . 2 4 . 2 . Investigation 1 | . 1 . . . . Extermination . | . . . . . . Reinforcement 7 | . 1 4 . 2 . Assault . | . . . . . . Garrison . | . . . . . . Intercept . | . . . . . . Searches Triggered . | . . . . . . Construction Impeded 2 | . . 1 . 1 . Haulers Reinforced . | . . . . . . Active Scanning Responses . | . . . . . . Cargo Convoy Interrupts . | . . . . . . Stealth | -11 -10 -9 -9 -8 -8 --------- Run | Yrd Mat Mat Min Mat Sto Distress Signals 11 | . 2 5 . 3 1 Communications Jammed . | . . . . . . Distress Signals . | . . . . . . Times Spotted 82 | . 13 40 . 21 8 Peak Tracking Total 7 | . 6 6 . 5 7 Tactical Retreats 6 | . 2 2 . 2 . Traps | -11 -10 -9 -9 -8 -8 ------- Run | Yrd Mat Mat Min Mat Sto Traps Triggered 2 | . 1 . . . 1 Indirectly . | . . . . . . Trap Hack Attempts . | . . . . . . Triggered . | . . . . . . Disarmed . | . . . . . . Reprogrammed . | . . . . . . Reused . | . . . . . . Traps Extracted . | . . . . . . Installed . | . . . . . . Triggered . | . . . . . . Machines | -11 -10 -9 -9 -8 -8 ---------- Run | Yrd Mat Mat Min Mat Sto Machines Disabled 8 | . . 8 . . . Max in Single Turn 2 | . . 2 . . . Machines Repaired . | . . . . . . Machines Dismantled . | . . . . . . Machines Sabotaged . | . . . . . . Overloaded Fab Kills . | . . . . . . Hacking | -11 -10 -9 -9 -8 -8 --------- Run | Yrd Mat Mat Min Mat Sto Machines Accessed 8 | . . 4 1 2 1 Terminals 5 | . . 2 . 2 1 Fabricators . | . . . . . . Repair Stations . | . . . . . . Recycling Units 1 | . . 1 . . . Scanalyzers 1 | . . 1 . . . Garrison Access . | . . . . . . Total Hacks 15 | . . 10 1 3 1 Successful 8 | . . 5 1 1 1 Failed 7 | . . 5 . 2 . Catastrophic . | . . . . . . Database Lockouts . | . . . . . . Manual . | . . . . . . Terminals 8 | . . 4 . 3 1 Fabricators . | . . . . . . Repair Stations . | . . . . . . Recycling Units 4 | . . 4 . . . Scanalyzers 2 | . . 2 . . . Garrison Access . | . . . . . . Terminal Hacks 4 | . . 1 1 1 1 Robot Analysis 1 | . . . . 1 . Prototype ID Bank 1 | . . 1 . . . Open Door 2 | . . . 1 . 1 Fabricator Hacks . | . . . . . . Repair Station Hacks . | . . . . . . Recycling Unit Hacks 2 | . . 2 . . . Report Inventory 1 | . . 1 . . . Retrieve Components 1 | . . 1 . . . Scanalyzer 2 | . . 2 . . . Insert Component 1 | . . 1 . . . Analyze 1 | . . 1 . . . Garrison Access Hacks . | . . . . . . Unauthorized Hacks . | . . . . . . Terminals . | . . . . . . Fabricators . | . . . . . . Repair Stations . | . . . . . . Recycling Units . | . . . . . . Scanalyzers . | . . . . . . Garrison Access . | . . . . . . Data Cores Recovered . | . . . . . . Used . | . . . . . . Hacking Detections 5 | . . 3 . 1 1 Full Trace Events . | . . . . . . Feedback Events . | . . . . . . Feedback Blocked . | . . . . . . Robot Schematics Acquired . | . . . . . . Robots Built . | . . . . . . Authchips . | . . . . . . Time . | . . . . . . Total Robot Build Rating . | . . . . . . Part Schematics Acquired 1 | . . 1 . . . Parts Built . | . . . . . . Authchips . | . . . . . . Time . | . . . . . . Total Part Build Rating . | . . . . . . Parts Repaired . | . . . . . . Time . | . . . . . . Parts Recycled . | . . . . . . Recycled Matter . | . . . . . . Retrieved Matter . | . . . . . . Retrieved Components 1 | . . 1 . . . Parts Scanalyzed 1 | . . 1 . . . Part Schematics Acquired 1 | . . 1 . . . Parts Damaged . | . . . . . . Bothacking | -11 -10 -9 -9 -8 -8 ------------ Run | Yrd Mat Mat Min Mat Sto Used RIF Installer . | . . . . . . Robots Hacked 2 | . . . . . 2 Non-combat . | . . . . . . Combat 2 | . . . . . 2 Robot Hacks Applied 3 | . . . . . 3 parse_system 3 | . . . . . 3 Relay Couplers Released . | . . . . . . Fabnet Peak Effective % . | . . . . . . Robots Rewired . | . . . . . . Allies Hacked . | . . . . . . Hacks Repelled . | . . . . . . Allies | -11 -10 -9 -9 -8 -8 -------- Run | Yrd Mat Mat Min Mat Sto Total Allies 3 | . . . 3 . . Largest Group 3 | . . . 3 3 . Highest-Rated Group 40 | . . . 40 40 . Highest-Rated Ally 16 | . . . 16 16 . Total Orders 1 | . . . . . 1 EXPLORE 1 | . . . . . 1 Ally Attacks 20 | . . . . 20 . Total Damage 147 | . . . . 147 . Kills 4 | . . . . 4 . Allies Corrupted . | . . . . . . Allies Melted . | . . . . . . Intel | -11 -10 -9 -9 -8 -8 ------- Run | Yrd Mat Mat Min Mat Sto Active Infowar (turns) 2682 | . 669 1035 495 427 56 Sensors 2682 | . 669 1035 495 427 56 Robot Analysis Total 1 | . . . . 1 . Derelict Logs Recovered 1 | . . . 1 . . Drone Launches 6 | . . . . . 6 Drone Recoveries 3 | . . . . . 3 Exploration | -11 -10 -9 -9 -8 -8 ------------- Run | Yrd Mat Mat Min Mat Sto Turns Passed 2920 | 72 687 1035 497 427 202 Spaces Moved 1666 | 53 311 664 402 172 64 Core 43 | 6 . . . 27 10 Treads . | . . . . . . Legs 1623 | 47 311 664 402 145 54 Wheels . | . . . . . . Hover . | . . . . . . Flight . | . . . . . . Fastest Speed 50 | 50 120 120 120 120 190 Average Speed 129 | 114 120 120 120 166 248 Slowest Speed 450 | 120 120 120 120 450 330 Overloaded Moves . | . . . . . . Propulsion Burnouts . | . . . . . . Robots Hopped . | . . . . . . Potential Cave-ins . | . . . . . . Cave-ins Triggered . | . . . . . . Exploration Rate (%) 34 | 4 34 48 86 22 15 Regions Visited 5 Branch Regions 2 Pre-discovered Areas . | . . . . . . Known Exits Taken . | . . . . . . Unknown Exits Taken 5 | 1 1 1 1 1 . Scrap Searched 3 | . . . 3 . . Spaces Dug 11 | . . 11 . . . Terrain Destroyed 242 | . . 161 . 79 2 Melee . | . . . . . . Projectile 8 | . . 1 . 5 2 AOE 234 | . . 160 . 74 . Terrain Rammed . | . . . . . . Walls Destroyed . | . . . . . . Machines Disabled . | . . . . . . Actions | -11 -10 -9 -9 -8 -8 --------- Run | Yrd Mat Mat Min Mat Sto Total 2214 | 61 587 795 417 253 101 Wait 294 | . 236 15 . 29 14 Move 1661 | 52 310 663 401 171 64 Hop . | . . . . . . Pick Up 37 | 3 9 13 3 5 4 Fast Attach 13 | 6 1 1 1 3 1 Attach 17 | . . 6 . 7 4 Detach 2 | . . . . 2 . Swap 11 | . 3 5 2 1 . Drop 25 | . 6 11 5 1 2 Fire 139 | . 19 80 . 34 6 Melee 5 | . . . . . 5 Ram . | . . . . . . Kick 10 | . 3 1 5 . 1 Crush . | . . . . . . Escape Stasis . | . . . . . . Rewire . | . . . . . . Trap . | . . . . . . Miscellaneous . | . . . . . . Route ------- -11/Scrapyard -10/Materials (discovered 2 exits: *Mat / [*Sub]) -9/Materials -9/Mines (discovered 2 exits: *Mat x2) -8/Materials -8/Storage History --------- Turn | Location | Event 18 | -11/Scrapyard | Discovered new exit (range 14) 73 | -11/Scrapyard | Entered Materials 226 | -10/Materials | Discovered new exit (range 7) 304 | -10/Materials | Build established: Mutant 673 | -10/Materials | Derelicts attacked the area 697 | -10/Materials | Discovered new exit (range 16) 760 | -10/Materials | Entered another Materials area 760 | -9/Materials | Evolved 2 slots: Propulsion x1, Utility x1 1319 | -9/Materials | Build established: Scavenger-Mutant 1746 | -9/Materials | Discovered new exit (range 8) 1769 | -9/Materials | Build established: Mutant 1795 | -9/Materials | Entered Mines 1813 | -9/Mines | Met a Derelict bent on vengeance 1888 | -9/Mines | Found a damaged Exp. Sensor Array with a note attached 1891 | -9/Mines | Found Prototype Device 1891 | -9/Mines | Identified Exp. Sensor Array 1915 | -9/Mines | Received a Rocket Launcher from a helpful Derelict 2034 | -9/Mines | Assisted by bots powering up and referring to "LRC-V3" 2074 | -9/Mines | Met a Derelict who couldn't figure out how to use a Trap Extractor 2155 | -9/Mines | Discovered new exit (range 10) 2172 | -9/Mines | Discovered new exit (range 10) 2224 | -9/Mines | Learned Materials garrison access intel 2292 | -9/Mines | Entered Materials 2292 | -8/Materials | Accompanied by 3 allies 2292 | -8/Materials | Evolved 2 slots: Power x1, Weapon x1 2293 | -8/Materials | Loaded intel: 1 garrison access location 2482 | -8/Materials | Discovered new exit (range 15) 2592 | -8/Materials | Lost 8 parts (2p3n3w) 2719 | -8/Materials | Entered Storage 2905 | -8/Storage | Core integrity fell below 50% 2916 | -8/Storage | Core integrity fell below 20% 2921 | -8/Storage | Destroyed by G-47 Trooper with Particle Gun Last Messages --------------- 02897_ Imp. Ion Engine destroyed. 02897_ Drone Bay destroyed. 02900_ Jacked G-47 Trooper... >>parse_system Reading system data... 02900_ Slug penetrates G-47 Trooper. 02901_ Jacked G-47 Trooper... 02901_ Command string: ki;; 02901_ No effect. 02902_ Jacked G-47 Trooper... >>parse_system Reading system data... 02902_ Aluminum Leg destroyed. 02903_ Penetrated by Slug. 02907_ Imp. Datajack destroyed. 02910_ Slug penetrates Wall. 02917_ M-13 Machinist repairs R-06 Scavenger. 02917_ Slug penetrates Wall. 02919_ Critical hit (Burn: +37). 02921_ M-13 Machinist repairs G-47 Trooper. Map ----- +----------------------------------------------------+ | ??????????????????????######??? | | ??????????????????????# #??? | | ??????????????????????# #??? | | ??????????????????????# #??? | | ??????????????????????# #??? | | ?????????????????###### #??? | | ?????????????????#! !## #??? | | ?????????????????#! ## ^%#??? | | ?????????????????#! ## #??? | | ?????????????????#! ## #??? | | ?????????????????## ### #??? | | ?????????????????#T + % #??? | | ?????????????????## # #??? | | ??????????????????##### #??? | | ??????????????????????# #??? | | ??????????????????????# s#??? | | ??????????????????????#% #??? | | ??????????????????????# #??? | | ???#T#"Y"############## ghs#??? | | ??# + m #??? | | ??#""" # a #??? | | ??#""" ??# #??? | | ??#""" ????# r #??? | | ??+ ??? = + u #??? | | ??#??? # #??? | | ?????" ??# @ #??? | | ?????" ????# ######## ##??? | | ???????????# #??????# #???? | | ???????????# #??????# #???? | | ???????????# #??????# #???? | | ???????????# #??????#a #???? | | ???????????# #??????/g #???? | | ???????????+ #??????# #???? | | ???????????# /??????# #???? | | ???????????# #??????# #???? | | ???????????# ???????# #???? | | ???????????? ???????# #???? | | ??????????????????????# ????? | | ??????????????????????# ????? | | ??????????????????????# ????? | | ??????????????????????? ????? | | ??????????????????????????????? | | ??????????????????????????????? | | ??????????????????????????????? | | ??????????????????????????????? | | ??????????????????????????????? | | ??????????????????????????????? | | ??????????????????????????????? | | ??????????????????????????????? | | ??????????????????????????????? | +----------------------------------------------------+ Best States ------------- Heat Dissipation 31 Energy Generation 17 Energy Capacity 290 Matter Stores 300 Matter Capacity 300 Sight Range 16 Robot Scan Range 20 Terrain Scan Density 10 Armor Coverage 225 Evasion (%) 55 Launcher Accuracy 20 Item Schematics ----------------- Rocket Launcher | -9/Materials | Scanalyzed Robot Schematics ------------------ None Fabricated ------------ Nothing Repaired ---------- Nothing Alien Tech Used ----------------- None Achievements -------------- None Challenges ------------ None Game ------ Seed ChipTeslaFlail Manual? 0 Play Time 00:38:29 Cumulative 7.9 hours Start 2025.10.03 @ 13:01:00 End 2025.10.03 @ 22:26:34 Sessions 5 Manual Loads 0 Difficulty Rogue Special Mode None Game No. 12 Rogue 12 Adventurer 0 Explorer 0 Win Type - Total 0 Types 0/0/0/0/0/0/0/0/0/0 Lore% 3 Gallery% 15 Achievement% 14 Wizard Run 0 Options --------- Layout 0 ASCII 0 Keyboard 0 Movement Mouse Keybinds 0 Fullscreen 2 Font 36/Smallcaps Map View 38x25 Zoom Use 90% Tactical HUD 1 Map Filters NONE Filters NONE Steam 1 RUN: add60232-6428-41f0-bb8d-bb33d5ae6c7a